Cogmind - Beta 16 @@@ ROGUE MODE // 2026.01.27 @ 17:34:24 Player: PE-P51_RE Result: Destroyed by S-27 Virus with Autogun Performance ------------- Evolutions (0) 0 Regions Visited (3) 600 Robots Destroyed (34) 170 Value Destroyed (982) 982 Prototype IDs (12) 240 Alien Tech Used (0) 0 Bonus (-21) -21 TOTAL SCORE: 1971 Bonus ------- Friendly Fire -21 Cogmind --------- Core Integrity 0/250 Matter 285/300 Energy 170/170 System Corruption 0% Temperature Cool (0) Movement Treading (1160) Ox10 Location -7/Recycling Parts ------- > --- POWER (1) -------- Makeshift Power Source > --- PROPULSION (2) --- Spiked Treads > --- UTILITY (2) ------ Humpback > --- WEAPON (2) ------- EM Pulse Gun Subdweller Machine Gun > --- INVENTORY (35) --- Subdweller Power Source Meta Core Arachnoskeleton Subdweller Monowheel Subdweller Monowheel Humpback Subdweller Optics Subdweller Optics Subdweller Optics Makeshift Light Armor Plating Scrap Shield Subdweller Laser Subdweller Beam Cannon Subdweller Machine Gun Grenade Launcher Scrap Shield Fragment (42) SUBCON Basin (Full) Peak State ------------ > --- POWER ------------ Makeshift Power Source > --- PROPULSION ------- Light Treads Spiked Treads > --- UTILITY ---------- Humpback > --- WEAPON ----------- Subdweller Beam Cannon Subdweller Machine Gun > --- INVENTORY -------- Subdweller Power Source Meta Core Arachnoskeleton Subdweller Monowheel Subdweller Monowheel Humpback Subdweller Optics Subdweller Optics Subdweller Optics Makeshift Light Armor Plating Scrap Shield Subdweller Laser Subdweller Machine Gun Grenade Launcher SUBCON Basin [Rating: 37] Favorites ----------- Power Makeshift Power Source Engine Makeshift Power Source Propulsion Light Treads Treads Light Treads Leg Makeshift Leg Wheel Wheel Utility Scrap Shield Device Improved Heat Sink Storage Humpback Protection Scrap Shield Weapon Subdweller Machine Gun Energy Gun EM Pulse Gun Energy Cannon Subdweller Beam Cannon Ballistic Gun Subdweller Machine Gun Launcher Subdweller Shrapnel Launcher Build | -11 -10 -10 -7 ------- Run | Yrd Mat Sub Rec Slots Evolved . | . . . . Power . | . . . . Propulsion . | . . . . Utility . | . . . . Weapon . | . . . . Parts Attached 29 | . 4 25 . Power 8 | . 1 7 . Engine 8 | . 1 7 . Core . | . . . . Reactor . | . . . . Propulsion 7 | . 1 6 . Treads 3 | . . 3 . Leg 2 | . 1 1 . Wheel 2 | . . 2 . Hover . | . . . . Flight . | . . . . Utility 5 | . 2 3 . Device 1 | . 1 . . Storage 1 | . . 1 . Processor . | . . . . Hackware . | . . . . Protection 3 | . 1 2 . Artifact . | . . . . Weapon 9 | . . 9 . Energy Gun 2 | . . 2 . Energy Cannon 1 | . . 1 . Ballistic Gun 5 | . . 5 . Ballistic Cannon . | . . . . Launcher 1 | . . 1 . Special Weapon . | . . . . Impact Weapon . | . . . . Slashing Weapon . | . . . . Piercing Weapon . | . . . . Special Melee Weapon . | . . . . Unidentified Prototypes . | . . . . Parts Lost 6 | . . 5 1 Power . | . . . . Propulsion 4 | . . 3 1 Utility 1 | . . 1 . Weapon 1 | . . 1 . Highest Loss Streak 2 | . . 2 1 To Critical Strikes . | . . . . Average Backups 7 | 6 7 6 15 Power . | 1 1 . 1 Propulsion 2 | 4 4 1 3 Utility 1 | . . 1 6 Weapon 2 | 1 1 2 4 Tool/Special . | . . . . Unused Backups 23 | . 5 8 10 Power 1 | . 1 . . Propulsion 9 | . 1 5 3 Utility 5 | . 1 . 4 Weapon 7 | . 2 3 2 Tool/Special 1 | . . . 1 Average Slot Usage (%) 86 | . 95 86 82 Engine 14 | . 14 14 14 Treads 19 | . . 20 25 Leg 5 | . 28 4 . Storage 5 | . 14 5 14 Protection 11 | . 2 11 . Energy Gun 2 | . . 2 14 Energy Cannon 8 | . . 8 . Ballistic Gun 17 | . 28 16 14 Peak Build Rating 37 | 6 9 37 36 Average Rating 18 | 6 7 18 35 On Entrance 13 | 6 6 7 36 Avg Prop Armor Cover (%) 5 | . . 5 . Naked Turns . | . . . . Heaviest Build 216 | 12 13 216 210 Greatest Support 40 | 20 20 40 40 Greatest Overweight (x) 10 | . . 5 10 Average Overweight (x) 1 | . . 1 5 Largest Inventory Capacity 35 | 8 8 35 35 Average Capacity 14 | 8 8 14 35 Most Carried 35 | 6 8 35 35 Average Carried 11 | 6 7 11 35 Final Capacity 35 | 8 8 35 35 Final Carried 35 | 6 8 35 35 Class Distribution -------------------- 41% | Subdweller-Mutant 31% | Hauler-Mutant 19% | Mutant 7% | Scavenger-Mutant Dominant Class ---------------- Mutant | -10/Materials Subdweller-Mutant | -10/Subcaves Hauler-Mutant | -7/Recycling Resources | -11 -10 -10 -7 ----------- Run | Yrd Mat Sub Rec Matter Collected 965 | 200 22 743 . Remotely . | . . . . Salvage Created 976 | . 51 925 . Parts 87 | . 2 85 . Haulers Intercepted . | . . . . Recyclers Shooed . | . . . . Parts Field Recycled . | . . . . Retrieved Matter . | . . . . Parts Self-Destructed 27 | . . 27 . Prevented . | . . . . Parts Restored . | . . . . Kills | -11 -10 -10 -7 ------- Run | Yrd Mat Sub Rec Combat Hostiles Destroyed 34 | . 1 33 . Guns 30 | . 1 29 . Cannons 2 | . . 2 . AOE 2 | . . 2 . Classes Destroyed 4 | . 1 3 . Swarmer 13 | . . 13 . Grunt 1 | . 1 . . Sentry 1 | . . 1 . Subdweller 19 | . . 19 . Best Kill Streak 3 | . 1 3 . Combat Bots Only 3 | . 1 3 . Max Kills in Single Turn 2 | . 1 2 . Gunslinging 1 | . . 1 . Exploded 2 | . . 2 . Melee . | . . . . Uniques/NPCs Destroyed . | . . . . Combat | -11 -10 -10 -7 -------- Run | Yrd Mat Sub Rec Hostile Shots Fired 196 | . 6 183 7 Missed 67 | . 1 64 2 Hits 129 | . 5 119 5 Projectile 129 | . 5 119 5 AOE 2 | . . 2 . Critical Strikes 1 | . . 1 . Damage Taken 1992 | . 84 1827 81 Core 256 | . . 238 18 Absorbed by Shields . | . . . . Redirected to Shielding 50 | . . 50 . Core Remaining (%) 100 | 100 . . . Volleys Fired 143 | . 6 137 . Largest 2 | . 2 2 . Hottest 110 | . 40 110 . Shots Fired 262 | . 12 250 . Gun 234 | . 12 222 . Cannon 22 | . . 22 . Launcher 6 | . . 6 . Special . | . . . . Kinetic 212 | . 12 200 . Thermal 50 | . . 50 . Explosive . | . . . . Electromagnetic . | . . . . Robot Hit Streak 18 | . 8 18 . Robot Miss Streak 8 | . 1 8 . Penetration Max . | . . . . Secondary Targets 10 | . . 10 . Max Gunslinging Chain 1 | . . 1 . Shots Hit Robots 126 | . 9 117 . Core Hits 55 | . 4 51 . Critical Kills 3 | . . 3 . Critical Parts Destroyed 2 | . . 2 . Critical Strikes 7 | . . 7 . Destroy 7 | . . 7 . Melee Attacks . | . . . . Impact . | . . . . Slashing . | . . . . Piercing . | . . . . Sneak Attacks . | . . . . Combat Hostiles . | . . . . Follow-up Attacks . | . . . . Damage Inflicted 2745 | . 67 2678 . Guns 2363 | . 67 2296 . Cannons 131 | . . 131 . Explosions 251 | . . 251 . Melee . | . . . . Ramming . | . . . . Kinetic 2127 | . 67 2060 . Thermal 618 | . . 618 . Explosive . | . . . . Electromagnetic . | . . . . Impact . | . . . . Slashing . | . . . . Piercing . | . . . . Highest Corruption . | . . . . Average Corruption . | . . . . Corruption Purged . | . . . . Corruption Blocked . | . . . . Overload Shots . | . . . . Overflow Damage . | . . . . Projectiles . | . . . . Explosions . | . . . . Melee . | . . . . Knockbacks . | . . . . Impact . | . . . . Kinetic . | . . . . Secondary . | . . . . Self-Inflicted Damage 6 | . . 6 . Shots 1 | . . 1 . Rammed . | . . . . Targets Rammed 1 | . 1 . . Kicked 1 | . 1 . . Crushed . | . . . . Highest Temperature 18 | . 18 18 . Average Temperature 5 | . 12 4 . Received Heat Transfer 369 | . 45 324 . Siege Activations . | . . . . Martial Activations . | . . . . Shielding Activations . | . . . . Robots Disrupted . | . . . . Combat Hostiles . | . . . . Robots Corrupted . | . . . . Combat Hostiles . | . . . . Parts Fried . | . . . . Impact Corruptions . | . . . . Robots Melted . | . . . . Combat Hostiles . | . . . . Parts Melted 1 | . . 1 . Heat Transferred 760 | . . 760 . Parts Sabotaged . | . . . . Parts Stolen . | . . . . Parts Stripped . | . . . . Power Chain Reactions . | . . . . Alert | -11 -10 -10 -7 ------- Run | Yrd Mat Sub Rec Maximum Alert Level . | . . . . Low Security (%) 100 | 100 100 . 100 Level 1 . | . . . . Level 2 . | . . . . Level 3 . | . . . . Level 4 . | . . . . Level 5 . | . . . . High Security . | . . . . Max Security . | . . . . Peak Influence 153 | . 35 . 153 Initial 153 | . . . 153 Average 23 | . 7 . 145 Influence Increases 727 | . 57 670 . Destroy 0b10 Robot/C 300 | . 20 280 . Destroy Leader 40 | . 10 30 . Successful Hack 12 | . 12 . . Lose Combat Pursuer 375 | . 15 360 . Influence Decreases 594 | . 57 351 186 Entered New Map 166 | . . . 166 Time Decay 378 | . 57 311 10 Lost Part 50 | . . 40 10 Squads Dispatched . | . . . . Investigation . | . . . . Extermination . | . . . . Reinforcement . | . . . . Assault . | . . . . Garrison . | . . . . Intercept . | . . . . Searches Triggered . | . . . . Construction Impeded . | . . . . Haulers Reinforced . | . . . . Active Scanning Responses . | . . . . Cargo Convoy Interrupts . | . . . . Stealth | -11 -10 -10 -7 --------- Run | Yrd Mat Sub Rec Distress Signals . | . . . . Communications Jammed . | . . . . Distress Signals . | . . . . Times Spotted 54 | . 4 49 1 Peak Tracking Total 4 | . 2 4 2 Tactical Retreats 11 | . 1 10 . Traps | -11 -10 -10 -7 ------- Run | Yrd Mat Sub Rec Traps Triggered 2 | . . 2 . Indirectly . | . . . . Trap Hack Attempts . | . . . . Triggered . | . . . . Disarmed . | . . . . Reprogrammed . | . . . . Reused . | . . . . Traps Extracted . | . . . . Installed . | . . . . Triggered . | . . . . Machines | -11 -10 -10 -7 ---------- Run | Yrd Mat Sub Rec Machines Disabled 5 | . . 5 . Max in Single Turn 3 | . . 3 . Machines Repaired . | . . . . Machines Dismantled . | . . . . Machines Sabotaged . | . . . . Overloaded Fab Kills . | . . . . Hacking | -11 -10 -10 -7 --------- Run | Yrd Mat Sub Rec Machines Accessed 5 | . 1 4 . Terminals 1 | . 1 . . Fabricators . | . . . . Repair Stations . | . . . . Recycling Units . | . . . . Scanalyzers . | . . . . Garrison Access . | . . . . Total Hacks 12 | . 5 7 . Successful 9 | . 2 7 . Failed 3 | . 3 . . Catastrophic . | . . . . Database Lockouts . | . . . . Manual 5 | . 5 . . Terminals 5 | . 5 . . Fabricators . | . . . . Repair Stations . | . . . . Recycling Units . | . . . . Scanalyzers . | . . . . Garrison Access . | . . . . Terminal Hacks 9 | . 2 7 . Record 4 | . . 4 . Robot Analysis 2 | . 2 . . Open Door 1 | . . 1 . Proto ID Catalog 1 | . . 1 . Release Object 1 | . . 1 . Fabricator Hacks . | . . . . Repair Station Hacks . | . . . . Recycling Unit Hacks . | . . . . Scanalyzer . | . . . . Garrison Access Hacks . | . . . . Unauthorized Hacks . | . . . . Terminals . | . . . . Fabricators . | . . . . Repair Stations . | . . . . Recycling Units . | . . . . Scanalyzers . | . . . . Garrison Access . | . . . . Data Cores Recovered . | . . . . Used . | . . . . Hacking Detections 1 | . 1 . . Full Trace Events . | . . . . Feedback Events . | . . . . Feedback Blocked . | . . . . Robot Schematics Acquired . | . . . . Robots Built . | . . . . Authchips . | . . . . Time . | . . . . Total Robot Build Rating . | . . . . Part Schematics Acquired . | . . . . Parts Built . | . . . . Authchips . | . . . . Time . | . . . . Total Part Build Rating . | . . . . Part Studies Acquired . | . . . . Parts Repaired . | . . . . Time . | . . . . Parts Recycled . | . . . . Recycled Matter . | . . . . Retrieved Matter . | . . . . Retrieved Components . | . . . . Parts Scanalyzed . | . . . . Part Schematics Acquired . | . . . . Parts Damaged . | . . . . Bothacking | -11 -10 -10 -7 ------------ Run | Yrd Mat Sub Rec Used RIF Installer . | . . . . Robots Hacked . | . . . . Non-combat . | . . . . Combat . | . . . . Robot Hacks Applied . | . . . . Relay Couplers Released . | . . . . Fabnet Peak Effective % . | . . . . Robots Rewired . | . . . . Allies Hacked . | . . . . Hacks Repelled . | . . . . Allies | -11 -10 -10 -7 -------- Run | Yrd Mat Sub Rec Total Allies . | . . . . Largest Group . | . . . . Highest-Rated Group . | . . . . Highest-Rated Ally . | . . . . Total Orders . | . . . . Ally Attacks . | . . . . Total Damage . | . . . . Kills . | . . . . Allies Corrupted . | . . . . Allies Melted . | . . . . Intel | -11 -10 -10 -7 ------- Run | Yrd Mat Sub Rec Active Infowar (turns) . | . . . . Robot Analysis Total 1 | . 1 . . Derelict Logs Recovered 2 | . . 2 . Drone Launches . | . . . . Drone Recoveries . | . . . . Exploration | -11 -10 -10 -7 ------------- Run | Yrd Mat Sub Rec Turns Passed 7763 | 3 284 7439 37 Spaces Moved 3054 | 3 201 2844 6 Core . | . . . . Treads 2343 | . . 2337 6 Legs 279 | 3 201 75 . Wheels 432 | . . 432 . Hover . | . . . . Flight . | . . . . Fastest Speed 95 | 120 120 95 610 Average Speed 233 | 120 120 240 701 Slowest Speed 1160 | 120 120 610 1160 Overloaded Moves . | . . . . Propulsion Burnouts . | . . . . Robots Hopped . | . . . . Potential Cave-ins . | . . . . Cave-ins Triggered . | . . . . Exploration Rate (%) 35 | 3 35 97 5 Regions Visited 3 Branch Regions 2 Pre-discovered Areas 2 | . . 2 . Known Exits Taken . | . . . . Unknown Exits Taken 3 | 1 1 1 . Scrap Searched 3 | . . 3 . Spaces Dug 2 | . . 2 . Terrain Destroyed 49 | . . 49 . Melee . | . . . . Projectile 3 | . . 3 . AOE 46 | . . 46 . Terrain Rammed . | . . . . Walls Destroyed . | . . . . Machines Disabled . | . . . . Actions | -11 -10 -10 -7 --------- Run | Yrd Mat Sub Rec Total 3447 | 2 233 3206 6 Wait 157 | . 20 137 . Move 3051 | 2 200 2843 6 Hop . | . . . . Pick Up 25 | . 1 24 . Fast Attach 8 | . 1 7 . Attach 6 | . . 6 . Detach 2 | . . 2 . Swap 17 | . 3 14 . Drop 25 | . 1 24 . Fire 143 | . 6 137 . Melee . | . . . . Ram . | . . . . Kick 1 | . 1 . . Crush . | . . . . Escape Stasis . | . . . . Rewire . | . . . . Trap . | . . . . Miscellaneous 12 | . . 12 . Route ------- -11/Scrapyard -10/Materials (discovered 3 exits: [*Mat] / [*Min] / *Sub) -10/Subcaves (discovered 4 exits: [*Mat x2] / [*Rec] / [*Scr]) -7/Recycling History --------- Turn | Location | Event 1 | -11/Scrapyard | Discovered new exit (range 3) 4 | -11/Scrapyard | Entered Materials 128 | -10/Materials | Discovered new exit (range 7) 173 | -10/Materials | Discovered new exit (range 5) 271 | -10/Materials | Discovered new exit (range 4) 288 | -10/Materials | Entered Subcaves 289 | -10/Subcaves | Approached by a straggling Scientist 295 | -10/Subcaves | Ambushed by Subdwellers from Twisted Machinery 307 | -10/Subcaves | Build established: Mutant 354 | -10/Subcaves | Learned Materials garrison access intel 360 | -10/Subcaves | Ambushed by angry Subdweller bent on revenge 522 | -10/Subcaves | Shifting Twisted Machinery released Shrapnel Trap 527 | -10/Subcaves | Shifting Twisted Machinery released Flamer 582 | -10/Subcaves | Discovered new exit (range 14) 602 | -10/Subcaves | Learned location of Zion (-7) 602 | -10/Subcaves | Met a Zionite searching for "candidates" 702 | -10/Subcaves | Build established: Scavenger-Mutant 818 | -10/Subcaves | Core integrity fell below 50% 999 | -10/Subcaves | Discovered new exit (range 13) 1083 | -10/Subcaves | Scientist uncovered a shortcut to Scraptown 1253 | -10/Subcaves | Build established: Mutant 1268 | -10/Subcaves | A swath of the cavern ceiling suddenly collapsed 1639 | -10/Subcaves | A swath of the cavern ceiling suddenly collapsed 2001 | -10/Subcaves | A Subdweller sparked back to life 2001 | -10/Subcaves | A Subdweller sparked back to life 2003 | -10/Subcaves | Core integrity fell below 20% 2045 | -10/Subcaves | Found Prototype Leg 2224 | -10/Subcaves | Discovered new exit (range 13) 2351 | -10/Subcaves | Build established: Subdweller-Mutant 2894 | -10/Subcaves | Visited Clippyterm 2901 | -10/Subcaves | Learned Factory emergency access door positions 4711 | -10/Subcaves | Shifting Twisted Machinery released Sub. Laser 4751 | -10/Subcaves | Shifting Twisted Machinery released Sub. Laser 5125 | -10/Subcaves | Visited 4L-MR0's lab 5133 | -10/Subcaves | Identified Arachnoskeleton 5145 | -10/Subcaves | Found Meta Core 5596 | -10/Subcaves | Build established: Hauler-Mutant 6716 | -10/Subcaves | Found SUBCON Basin 7727 | -10/Subcaves | Entered Recycling 7764 | -7/Recycling | Destroyed by S-27 Virus with Autogun Last Messages --------------- 07444_ 8G-2Y3(u) deconstructs Twisted Machinery. 07444_ 7C-QRZ(u) builds Twisted Machinery. 07446_ 8G-2Y3(u) deconstructs Twisted Machinery. 07446_ 7C-QRZ(u) builds Twisted Machinery. 07448_ 8G-2Y3(u) deconstructs Twisted Machinery. 07448_ 7C-QRZ(u) builds Twisted Machinery. 07450_ 8G-2Y3(u) deconstructs Twisted Machinery. 07450_ 7C-QRZ(u) builds Twisted Machinery. 07452_ 8G-2Y3(u) deconstructs Twisted Machinery. 07452_ 7C-QRZ(u) builds Twisted Machinery. 07454_ 8G-2Y3(u) deconstructs Twisted Machinery. 07454_ 7C-QRZ(u) builds Twisted Machinery. 07456_ 8G-2Y3(u) deconstructs Twisted Machinery. 07456_ 7C-QRZ(u) builds Twisted Machinery. 07458_ 8G-2Y3(u) deconstructs Twisted Machinery. 07690_ Acquired 5 matter. LOCATION=UNKNOWN GOAL=ESCAPE 07751_ S-27 Virus springs to life. 07756_ Lgt. Treads destroyed. Map ----- +----------------------------------------------------+ | ???????????????????????????????????????????????? | | ???????????????????????????????????????????????? | | ???????????????????????????????????????????????? | | ???????????????????????????????????????????????? | | ???????????????????????????????????????????????? | | ???????????????????????????????????????????????? | | ???????????????????????????????????????????????? | | ???????????????????????????????????????????????? | | ???????????????????????????????????????????????? | | ???????????????????????????????????????????????? | | ???????????????????????????????????????????????? | | ?????????????????????????#?????????????????????? | | ?????????????????????????Y###??????????????????? | | ????????????????????????? #??????????????????? | | ????????????????????????? #??????????????????? | | ????????????????????????? "??????????????????? | | ????????????????????????? Y??????????????????? | | ????????????????????????# "??????????????????? | | ????????????????????????# #??????????????????? | | ????????????????????????# #??????????????????? | | ????????????????????????# #??????????????????? | | ????????????????????????# ###????????????????? | | ???????????????#######??# ""#????????????????? | | ???????????????# ! ?# Y"#????????????????? | | ???????????????# = ?# ""#????????????????? | | ???????????????# #@ #??????????????????? | | ???????????????# #s #??????????????????? | | ???????????????# ! + #??????????????????? | | ???????????????#] ! # #??????????????????? | | ???????????????# ! # #??????????????????? | | ???????????????# ! ?# #??????????????????? | | ???????????????# ! ] ?# #??????????????????? | | ???????????????#######??# #??????????????????? | | ????????????????????????#####??????????????????? | | ???????????????????????????????????????????????? | | ???????????????????????????????????????????????? | | ???????????????????????????????????????????????? | | ???????????????????????????????????????????????? | | ???????????????????????????????????????????????? | | ???????????????????????????????????????????????? | | ???????????????????????????????????????????????? | | ???????????????????????????????????????????????? | | ???????????????????????????????????????????????? | | ???????????????????????????????????????????????? | | ???????????????????????????????????????????????? | | ???????????????????????????????????????????????? | | ???????????????????????????????????????????????? | | | | | | | +----------------------------------------------------+ Best States ------------- Heat Dissipation 39 Energy Generation 15 Energy Capacity 250 Matter Stores 300 Matter Capacity 300 Sight Range 16 Terrain Scan Density 10 Armor Coverage 800 Core Shielding 20 Evasion (%) 55 Recoil Reduction 2 Item Schematics ----------------- None Robot Schematics ------------------ None Fabricated ------------ Nothing Repaired ---------- Nothing Studied --------- None Alien Tech Used ----------------- None Achievements -------------- None Challenges ------------ None Game ------ Seed SubatomicMetamassChip Manual? 0 Play Time 00:18:36 Cumulative 338.1 hours Start 2026.01.27 @ 17:14:46 End 2026.01.27 @ 17:34:24 Sessions 1 Manual Loads 0 Difficulty Rogue Special Mode None Game No. 417 Rogue 415 Adventurer 2 Explorer 0 Win Type - Total 4 Types 2/0/0/1/1/0/0/0/0/0 Lore% 81 Gallery% 71 Achievement% 62 Wizard Run 0 Options --------- Layout 0 ASCII 0 Keyboard 0 Movement Numpad Keybinds 0 Fullscreen 2 Font 24/Smallcaps Map View 76x50 Zoom Use 0% Tactical HUD 1 Map Filters NONE Filters NONE Steam 1 RUN: 9e83c310-36d1-4700-ab8b-f60ec20c69b7